fUSD/lending_fUSD_20260617
["ID","MTS","AMOUNT","RATE_DAILY","PERIOD"]
[425226420,1781626258000,-500.0,0.00029,2]
[425226409,1781626258000,-500.0,0.00029,2]
[425226416,1781626258000,-200.0,0.00029,2]
[425226413,1781626258000,-200.0,0.00029,2]
[425226415,1781626258000,-200.0,0.00029,2]
[425226414,1781626258000,-200.0,0.00029,2]
[425226411,1781626258000,-500.0,0.00029,2]
[425226412,1781626258000,-200.0,0.00029,2]
[425226410,1781626258000,-500.0,0.00029,2]
[425226407,1781626258000,-500.0,0.00029,2]
[425226405,1781626258000,-500.0,0.00029,2]
[425226408,1781626258000,-500.0,0.00029,2]
[425226406,1781626258000,-500.0,0.00029,2]
[425226404,1781626258000,-500.0,0.00029,2]
[425226403,1781626258000,-500.0,0.00029,2]
[425226433,1781626258000,-200.0,0.00029,2]
[425226418,1781626258000,-200.0,0.00029,2]
[425226434,1781626258000,-200.0,0.00029,2]
[425226428,1781626258000,-505.48,0.00029,2]
[425226437,1781626258000,-200.0,0.00029,2]
[425226454,1781626258000,-500.0,0.00029,2]
[425226452,1781626258000,-500.0,0.00029,2]
[425226453,1781626258000,-500.0,0.00029,2]
[425226458,1781626258000,-500.0,0.00029,2]
[425226459,1781626258000,-500.0,0.00029,2]
[425226462,1781626258000,-1000.0,0.00029,2]
[425226455,1781626258000,-500.0,0.00029,2]
[425226461,1781626258000,-1000.0,0.00029,2]
[425226467,1781626258000,-1000.0,0.00029,2]
[425226463,1781626258000,-1000.0,0.00029,2]
[425226466,1781626258000,-500.0,0.00029,2]
[425226465,1781626258000,-255.70221498,0.00029,2]
[425226468,1781626258000,-1000.0,0.00029,2]
[425226435,1781626258000,-200.0,0.00029,2]
[425226460,1781626258000,-1000.0,0.00029,2]
[425226456,1781626258000,-306.21448496,0.00029,2]
[425226464,1781626258000,-528.05121437,0.00029,2]
[425226457,1781626258000,-581.39280524,0.00029,2]
[425226439,1781626258000,-200.0,0.00029,2]
[425226451,1781626258000,-500.0,0.00029,2]
[425226438,1781626258000,-200.0,0.00029,2]
[425226441,1781626258000,-220.07,0.00029,2]
[425226442,1781626258000,-200.0,0.00029,2]
[425226443,1781626258000,-200.0,0.00029,2]
[425226440,1781626258000,-200.0,0.00029,2]
[425226445,1781626258000,-226.62288355,0.00029,2]
[425226446,1781626258000,-2519.1925043,0.00029,2]
[425226449,1781626258000,-10032.57138267,0.00029,2]
[425226447,1781626258000,-280.0,0.00029,2]
[425226448,1781626258000,-10000.0,0.00029,2]
[425226444,1781626258000,-1330.2282301,0.00029,2]
[425226450,1781626258000,-425.80933261,0.00029,2]
[425226505,1781626259000,-6144.32,0.00029132,30]
[425226502,1781626259000,-503.53599786,0.0002913,5]
[425226500,1781626259000,-278.95211607,0.0002913,7]
[425226501,1781626259000,-501.50342416,0.0002913,5]
[425226496,1781626259000,-1216.45,0.00029105,2]
[425226492,1781626259000,-2819.0,0.00029061,30]
[425226503,1781626259000,-995.45,0.00029132,30]
[425226488,1781626259000,-500.0,0.00029055,10]
[425226498,1781626259000,-200.0,0.00029124,2]
[425226497,1781626259000,-280.03725111,0.00029124,2]
[425226510,1781626259000,-1216.45,0.00029137,7]
[425226504,1781626259000,-3019.96,0.00029132,30]
[425226506,1781626259000,-2124.83,0.00029132,30]
[425226509,1781626259000,-1198.08,0.00029137,7]
[425226513,1781626259000,-300.0,0.00029169,10]
[425226516,1781626259000,-1216.45,0.00029169,30]
[425226514,1781626259000,-500.0,0.00029169,10]
[425226508,1781626259000,-2665.08,0.00029132,30]
[425226512,1781626259000,-500.0,0.00029169,10]
[425226507,1781626259000,-6133.59,0.00029132,30]
[425226515,1781626259000,-1198.08,0.00029169,30]
[425226499,1781626259000,-500.0,0.0002913,5]
[425226491,1781626259000,-462.0,0.00029061,30]
[425226478,1781626259000,-973.0,0.00029017,30]
[425226489,1781626259000,-636.0,0.00029061,30]
[425226511,1781626259000,-152.0,0.00029139,18]
[425226473,1781626259000,-419.0,0.00029006,2]
[425226472,1781626259000,-6078.0,0.00029006,2]
[425226469,1781626259000,-1000.0,0.00029,2]
[425226470,1781626259000,-1147.92276,0.00029,2]
[425226474,1781626259000,-1198.08,0.0002901,2]
[425226471,1781626259000,-1035.62807,0.00029,2]
[425226475,1781626259000,-1216.45,0.0002901,2]
[425226477,1781626259000,-387.0,0.00029017,30]
[425226476,1781626259000,-1773.0,0.00029017,30]
[425226490,1781626259000,-637.0,0.00029061,30]
[425226485,1781626259000,-1198.08,0.00029042,7]
[425226484,1781626259000,-555.0,0.00029017,30]
[425226483,1781626259000,-601.0,0.00029017,30]
[425226479,1781626259000,-200.0,0.00029017,30]
[425226481,1781626259000,-457.0,0.00029017,30]
[425226482,1781626259000,-1110.0,0.00029017,30]
[425226487,1781626259000,-644.76,0.00029043,2]
[425226494,1781626259000,-1216.45,0.00029074,30]
[425226495,1781626259000,-1198.08,0.00029105,2]
[425226486,1781626259000,-1216.45,0.00029042,7]
[425226493,1781626259000,-1198.08,0.00029074,30]
[425226480,1781626259000,-391.0,0.00029017,30]
[425226521,1781626259000,-327.11,0.00029212,15]
[425226545,1781626259000,-499.82973069,0.00029237,5]
[425226517,1781626259000,-1198.08,0.00029201,2]
[425226552,1781626259000,-988.25568439,0.00029237,7]
[425226553,1781626259000,-490.76542247,0.00029237,7]
[425226551,1781626259000,-246.86913171,0.00029237,7]
[425226554,1781626259000,-434.55707866,0.00029237,7]
[425226547,1781626259000,-234.10149032,0.00029237,7]
[425226549,1781626259000,-450.14279349,0.00029237,7]
[425226548,1781626259000,-352.13977259,0.00029237,2]
[425226550,1781626259000,-486.50770882,0.00029237,7]
[425226555,1781626259000,-267.8330395,0.00029237,7]
[425226558,1781626259000,-526.6367472,0.00029237,7]
[425226556,1781626259000,-709.67976352,0.00029237,7]
[425226557,1781626259000,-202.60041276,0.00029237,7]
[425226559,1781626259000,-539.23622979,0.00029237,7]
[425226563,1781626259000,-272.53783849,0.00029237,7]
[425226561,1781626259000,-309.05033523,0.00029237,7]
[425226565,1781626259000,-522.77312671,0.00029237,7]
[425226560,1781626259000,-175.03080818,0.00029237,7]
[425226562,1781626259000,-341.55821363,0.00029237,7]
[425226564,1781626259000,-591.36103633,0.00029237,7]
[425226566,1781626259000,-755.0,0.00029273,4]
[425226520,1781626259000,-222.94,0.00029212,15]
[425226546,1781626259000,-311.68885171,0.00029237,2]
[425226542,1781626259000,-507.13620614,0.00029237,2]
[425226567,1781626259000,-448.44326893,0.00029282,2]
[425226544,1781626259000,-227.28306632,0.00029237,7]
[425226543,1781626259000,-295.19032648,0.00029237,2]
[425226519,1781626259000,-303.86,0.00029212,15]
[425226522,1781626259000,-330.75,0.00029212,15]
[425226523,1781626259000,-181.91,0.00029212,15]
[425226524,1781626259000,-236.74,0.00029212,15]
[425226526,1781626259000,-1216.49,0.00029232,7]
[425226525,1781626259000,-1198.13,0.00029232,7]
[425226528,1781626259000,-232.94769071,0.00029232,7]
[425226527,1781626259000,-578.78571776,0.00029232,7]
[425226530,1781626259000,-464.59026501,0.00029232,7]
[425226529,1781626259000,-289.84241662,0.00029232,7]
[425226518,1781626259000,-1216.45,0.00029201,2]
[425226533,1781626259000,-472.39317936,0.00029232,7]
[425226535,1781626259000,-452.49105488,0.00029237,7]
[425226534,1781626259000,-203.93419966,0.00029237,7]
[425226531,1781626259000,-225.77708637,0.00029232,7]
[425226537,1781626259000,-802.40140509,0.00029237,7]
[425226539,1781626259000,-425.14513902,0.00029237,5]
[425226536,1781626259000,-217.62012303,0.00029237,7]
[425226538,1781626259000,-165.62709636,0.00029237,7]
[425226540,1781626259000,-509.65697178,0.00029237,7]
[425226541,1781626259000,-212.01908334,0.00029237,7]
[425226532,1781626259000,-510.34494845,0.00029232,7]
[425226599,1781626260000,-599.76248264,0.0002935,7]
[425226608,1781626260000,-542.62790367,0.0002935,7]
[425226607,1781626260000,-203.13590296,0.0002935,7]
[425226593,1781626260000,-500.1,0.00029316,2]
[425226597,1781626260000,-500.63890285,0.0002935,7]
[425226596,1781626260000,-566.20116196,0.0002935,7]
[425226595,1781626260000,-160.0,0.00029345,3]
[425226598,1781626260000,-470.90950719,0.0002935,7]
[425226605,1781626260000,-500.87830585,0.0002935,7]
[425226604,1781626260000,-491.68880025,0.0002935,7]
[425226600,1781626260000,-242.14295434,0.0002935,7]
[425226602,1781626260000,-387.15655753,0.0002935,7]
[425226601,1781626260000,-193.2307433,0.0002935,7]
[425226606,1781626260000,-622.42721947,0.0002935,7]
[425226610,1781626260000,-552.78214312,0.0002935,7]
[425226611,1781626260000,-486.91345324,0.0002935,7]
[425226609,1781626260000,-481.02723174,0.0002935,7]
[425226612,1781626260000,-549.8786532,0.0002935,7]
[425226616,1781626260000,-266.31790529,0.00029355,7]
[425226594,1781626260000,-567.87846486,0.0002932,7]
[425226603,1781626260000,-501.21279178,0.0002935,7]
[425226592,1781626260000,-500.1,0.00029316,2]
[425226580,1781626260000,-2124.83,0.00029299,7]
[425226591,1781626260000,-252.24571451,0.00029314,7]
[425226568,1781626260000,-548.06713627,0.00029286,7]
[425226574,1781626260000,-513.61636247,0.00029296,7]
[425226569,1781626260000,-215.34211024,0.00029293,2]
[425226573,1781626260000,-538.1985548,0.00029296,7]
[425226570,1781626260000,-556.23803638,0.00029296,7]
[425226571,1781626260000,-508.52021096,0.00029296,7]
[425226575,1781626260000,-503.69882789,0.00029296,7]
[425226572,1781626260000,-470.19658758,0.00029296,7]
[425226576,1781626260000,-214.79676551,0.00029298,7]
[425226578,1781626260000,-3019.96,0.00029299,7]
[425226577,1781626260000,-995.45,0.00029299,7]
[425226579,1781626260000,-6144.32,0.00029299,7]
[425226615,1781626260000,-524.22734359,0.0002935,7]
[425226582,1781626260000,-355.4181708,0.000293,7]
[425226584,1781626260000,-416.971319,0.000293,7]
[425226586,1781626260000,-416.971319,0.000293,14]
[425226587,1781626260000,-422.971319,0.000293,14]
[425226585,1781626260000,-422.971319,0.000293,7]
[425226583,1781626260000,-451.06922483,0.000293,7]
[425226588,1781626260000,-291.414692,0.000293,7]
[425226590,1781626260000,-327.06,0.000293,20]
[425226589,1781626260000,-291.414692,0.000293,14]
[425226613,1781626260000,-490.68054664,0.0002935,7]
[425226581,1781626260000,-6133.59,0.00029299,7]
[425226617,1781626260000,-467.09828504,0.00029355,7]
[425226640,1781626260000,-350.0,0.0002943,13]
[425226641,1781626260000,-150.0,0.00029459,30]
[425226647,1781626260000,-997.96,0.0002948,30]
[425226650,1781626260000,-521.2,0.00029508,7]
[425226648,1781626260000,-2500.0,0.000295,10]
[425226649,1781626260000,-1000.0,0.000295,2]
[425226646,1781626260000,-599.92,0.00029475,30]
[425226651,1781626260000,-1154.26,0.00029508,7]
[425226655,1781626260000,-1500.0,0.00029534,15]
[425226653,1781626260000,-1129.5,0.00029534,7]
[425226652,1781626260000,-1252.15,0.00029534,7]
[425226657,1781626260000,-150.0,0.00029534,2]
[425226658,1781626260000,-160.45822055,0.00029598,2]
[425226662,1781626260000,-416.971319,0.000296,14]
[425226659,1781626260000,-419.971319,0.000296,7]
[425226663,1781626260000,-995.45,0.00029634,30]
[425226661,1781626260000,-419.971319,0.000296,14]
[425226656,1781626260000,-1835.383212,0.00029534,15]
[425226664,1781626260000,-3019.96,0.00029634,30]
[425226660,1781626260000,-416.971319,0.000296,7]
[425226614,1781626260000,-185.68300126,0.0002935,7]
[425226639,1781626260000,-760.13,0.000294,7]
[425226644,1781626260000,-3019.96,0.00029467,2]
[425226654,1781626260000,-1500.0,0.00029534,15]
[425226645,1781626260000,-2124.83,0.00029467,2]
[425226637,1781626260000,-2062.76,0.0002939,30]
[425226620,1781626260000,-591.91851173,0.00029355,7]
[425226618,1781626260000,-623.33314711,0.00029355,7]
[425226621,1781626260000,-456.7432114,0.00029372,7]
[425226622,1781626260000,-626.6035716,0.00029372,7]
[425226619,1781626260000,-456.84718538,0.00029355,7]
[425226623,1781626260000,-534.6131821,0.00029372,7]
[425226624,1781626260000,-453.69374442,0.00029372,7]
[425226626,1781626260000,-435.10899961,0.00029372,7]
[425226628,1781626260000,-1046.96449333,0.00029377,5]
[425226627,1781626260000,-450.79573443,0.00029372,7]
[425226625,1781626260000,-218.26582501,0.00029372,7]
[425226638,1781626260000,-962.61,0.000294,30]
[425226629,1781626260000,-1037.76650633,0.00029377,5]
[425226632,1781626260000,-1040.86558369,0.00029377,5]
[425226633,1781626260000,-1111.05996391,0.00029377,5]
[425226631,1781626260000,-1102.06452328,0.00029377,5]
[425226634,1781626260000,-1122.18683992,0.00029377,5]
[425226635,1781626260000,-1143.48410691,0.00029377,5]
[425226636,1781626260000,-1674.79862416,0.00029377,5]
[425226643,1781626260000,-995.45,0.00029467,2]
[425226630,1781626260000,-1131.3770564,0.00029377,5]
[425226642,1781626260000,-16500.0,0.00029463,7]
[425226704,1781626261000,-666.43964092,0.00029807,5]
[425226701,1781626261000,-590.38065297,0.00029807,2]
[425226699,1781626261000,-201.22052711,0.00029807,7]
[425226698,1781626261000,-675.21419024,0.00029807,7]
[425226695,1781626261000,-679.54262904,0.00029807,7]
[425226694,1781626261000,-245.50810422,0.00029807,7]
[425226690,1781626261000,-435.24024606,0.00029807,7]
[425226696,1781626261000,-178.63142046,0.00029807,2]
[425226700,1781626261000,-676.18160819,0.00029807,2]
[425226697,1781626261000,-424.03816668,0.00029807,7]
[425226705,1781626261000,-467.53327757,0.00029807,2]
[425226712,1781626261000,-1317.67424585,0.00029807,7]
[425226703,1781626261000,-454.56613264,0.00029807,7]
[425226707,1781626261000,-468.20298063,0.00029807,7]
[425226706,1781626261000,-377.44229714,0.00029807,7]
[425226708,1781626261000,-528.20965889,0.00029807,2]
[425226709,1781626261000,-410.27510891,0.00029807,7]
[425226710,1781626261000,-729.76156324,0.00029807,7]
[425226711,1781626261000,-493.73826341,0.00029807,7]
[425226715,1781626261000,-651.83561799,0.00029807,7]
[425226714,1781626261000,-233.82829513,0.00029807,7]
[425226716,1781626261000,-535.66607901,0.00029807,7]
[425226689,1781626261000,-603.3214065,0.00029807,7]
[425226702,1781626261000,-222.16208298,0.00029807,7]
[425226688,1781626261000,-407.86839933,0.00029807,7]
[425226667,1781626261000,-152.0,0.0002964,19]
[425226692,1781626261000,-331.25419272,0.00029807,7]
[425226665,1781626261000,-2124.83,0.00029634,30]
[425226713,1781626261000,-654.35389662,0.00029807,7]
[425226674,1781626261000,-2124.83,0.00029802,7]
[425226669,1781626261000,-200.0,0.00029672,2]
[425226671,1781626261000,-400.0,0.0002977,2]
[425226668,1781626261000,-290.3986294,0.00029672,2]
[425226670,1781626261000,-530472.8474101,0.000297,5]
[425226673,1781626261000,-3019.96,0.00029802,7]
[425226672,1781626261000,-995.45,0.00029802,7]
[425226666,1781626261000,-2110.0,0.00029637,2]
[425226675,1781626261000,-771.71429035,0.00029802,7]
[425226677,1781626261000,-226.20959212,0.00029802,7]
[425226678,1781626261000,-465.89538143,0.00029802,7]
[425226676,1781626261000,-165.44881996,0.00029802,2]
[425226685,1781626261000,-311.29510258,0.00029802,7]
[425226680,1781626261000,-619.45368668,0.00029802,7]
[425226679,1781626261000,-579.68483325,0.00029802,7]
[425226681,1781626261000,-426.4711613,0.00029802,7]
[425226684,1781626261000,-680.45993126,0.00029802,7]
[425226683,1781626261000,-451.55417274,0.00029802,7]
[425226682,1781626261000,-165.55061113,0.00029802,7]
[425226686,1781626261000,-708.58976904,0.00029802,7]
[425226687,1781626261000,-755.0,0.00029807,4]
[425226691,1781626261000,-1069.86854011,0.00029807,7]
[425226717,1781626261000,-946.2396847,0.00029807,7]
[425226693,1781626261000,-637.71770852,0.00029807,5]
[425226720,1781626261000,-173.98411933,0.00029807,7]
[425226770,1781626261000,-564.5054,0.00029863,7]
[425226741,1781626261000,-717.59807307,0.00029862,7]
[425226745,1781626261000,-573.59,0.00029863,7]
[425226751,1781626261000,-573.59,0.00029863,7]
[425226760,1781626261000,-573.59,0.00029863,7]
[425226755,1781626261000,-573.59,0.00029863,7]
[425226752,1781626261000,-573.59,0.00029863,7]
[425226759,1781626261000,-573.59,0.00029863,7]
[425226756,1781626261000,-573.59,0.00029863,7]
[425226754,1781626261000,-573.59,0.00029863,7]
[425226750,1781626261000,-573.59,0.00029863,7]
[425226747,1781626261000,-573.59,0.00029863,7]
[425226753,1781626261000,-573.59,0.00029863,7]
[425226758,1781626261000,-573.59,0.00029863,7]
[425226761,1781626261000,-573.59,0.00029863,7]
[425226768,1781626261000,-573.59,0.00029863,7]
[425226763,1781626261000,-573.59,0.00029863,7]
[425226766,1781626261000,-573.59,0.00029863,7]
[425226765,1781626261000,-573.59,0.00029863,7]
[425226762,1781626261000,-573.59,0.00029863,7]
[425226767,1781626261000,-573.59,0.00029863,7]
[425226769,1781626261000,-564.5054,0.00029863,7]
[425226771,1781626261000,-564.5054,0.00029863,7]
[425226718,1781626261000,-405.20082551,0.00029807,7]
[425226757,1781626261000,-573.59,0.00029863,7]
[425226749,1781626261000,-573.59,0.00029863,7]
[425226764,1781626261000,-573.59,0.00029863,7]
[425226746,1781626261000,-573.59,0.00029863,7]
[425226722,1781626261000,-350.06161636,0.00029807,7]
[425226742,1781626261000,-573.78,0.00029863,7]
[425226724,1781626261000,-156.95396187,0.00029807,7]
[425226725,1781626261000,-392.09235894,0.00029807,7]
[425226719,1781626261000,-702.18232961,0.00029807,7]
[425226726,1781626261000,-159.92940095,0.00029807,7]
[425226727,1781626261000,-512.33732044,0.00029807,7]
[425226721,1781626261000,-160.29679251,0.00029807,7]
[425226728,1781626261000,-232.7376226,0.00029807,7]
[425226729,1781626261000,-788.48138177,0.00029807,7]
[425226731,1781626261000,-151.11173499,0.00029807,7]
[425226732,1781626261000,-159.95108294,0.00029807,2]
[425226723,1781626261000,-463.57550285,0.00029807,7]
[425226737,1781626261000,-151.0,0.00029855,2]
[425226748,1781626261000,-573.59,0.00029863,7]
[425226733,1781626261000,-697.03083561,0.00029807,7]
[425226743,1781626261000,-573.59,0.00029863,7]
[425226739,1781626261000,-250.15,0.00029856,2]
[425226735,1781626261000,-672.6649034,0.00029853,2]
[425226740,1781626261000,-730.75618169,0.00029857,7]
[425226738,1781626261000,-151.0,0.00029856,2]
[425226736,1781626261000,-282.43,0.00029855,2]
[425226730,1781626261000,-545.07567698,0.00029807,7]
[425226734,1781626261000,-159.62180091,0.00029807,7]
[425226744,1781626261000,-573.59,0.00029863,7]
[425226795,1781626262000,-429.59353102,0.00029867,7]
[425226792,1781626262000,-678.02694795,0.00029867,7]
[425226807,1781626262000,-345398.34282982,0.000299,2]
[425226794,1781626262000,-684.82181663,0.00029867,7]
[425226798,1781626262000,-601.42563311,0.00029871,7]
[425226806,1781626262000,-300.0,0.000299,28]
[425226797,1781626262000,-533.1272562,0.00029871,7]
[425226805,1781626262000,-422.971319,0.000299,14]
[425226799,1781626262000,-7208.95,0.00029872,2]
[425226801,1781626262000,-504.49142903,0.00029885,7]
[425226800,1781626262000,-22712.36,0.00029884,7]
[425226804,1781626262000,-422.971319,0.000299,7]
[425226803,1781626262000,-80535.34138284,0.000299,2]
[425226802,1781626262000,-757.17128648,0.00029892,7]
[425226789,1781626262000,-430.68422047,0.00029864,2]
[425226809,1781626262000,-754.93488261,0.00029922,7]
[425226808,1781626262000,-718.98163971,0.00029902,7]
[425226793,1781626262000,-626.92878343,0.00029867,7]
[425226780,1781626262000,-564.5054,0.00029863,7]
[425226790,1781626262000,-750.0,0.00029866,7]
[425226811,1781626262000,-627.87934292,0.00029922,7]
[425226772,1781626262000,-564.5054,0.00029863,7]
[425226774,1781626262000,-564.5054,0.00029863,7]
[425226773,1781626262000,-564.5054,0.00029863,7]
[425226784,1781626262000,-564.5054,0.00029863,7]
[425226775,1781626262000,-564.5054,0.00029863,7]
[425226776,1781626262000,-564.5054,0.00029863,7]
[425226782,1781626262000,-564.5054,0.00029863,7]
[425226788,1781626262000,-564.50572126,0.00029863,7]
[425226777,1781626262000,-564.5054,0.00029863,7]
[425226781,1781626262000,-564.5054,0.00029863,7]
[425226779,1781626262000,-564.5054,0.00029863,7]
[425226783,1781626262000,-564.5054,0.00029863,7]
[425226786,1781626262000,-564.5054,0.00029863,7]
[425226791,1781626262000,-741.65071517,0.00029867,7]
[425226785,1781626262000,-564.5054,0.00029863,7]
[425226787,1781626262000,-564.5054,0.00029863,7]
[425226796,1781626262000,-671.59843718,0.00029867,7]
[425226778,1781626262000,-564.5054,0.00029863,7]
[425226812,1781626262000,-229.5782513,0.00029922,7]
[425226832,1781626262000,-831.11086281,0.00029927,7]
[425226814,1781626262000,-484.28590869,0.00029922,7]
[425226838,1781626262000,-712.81757614,0.00029944,7]
[425226836,1781626262000,-608.99094854,0.00029944,7]
[425226837,1781626262000,-835.4714288,0.00029944,7]
[425226841,1781626262000,-435.95850267,0.00029944,7]
[425226840,1781626262000,-436.53165001,0.00029944,7]
[425226834,1781626262000,-700.0,0.00029932,60]
[425226842,1781626262000,-652.66349942,0.00029944,7]
[425226844,1781626262000,-601.06097924,0.00029944,7]
[425226843,1781626262000,-406.27180593,0.00029944,7]
[425226846,1781626262000,-641.36964232,0.00029944,7]
[425226813,1781626262000,-799.68331019,0.00029922,7]
[425226848,1781626262000,-995.45,0.00029969,2]
[425226851,1781626262000,-153.91866506,0.00029986,20]
[425226849,1781626262000,-3019.96,0.00029969,2]
[425226850,1781626262000,-2124.83,0.00029969,2]
[425226847,1781626262000,-789.22468231,0.00029944,7]
[425226852,1781626262000,-241.98535978,0.0002999,2]
[425226839,1781626262000,-604.92499255,0.00029944,7]
[425226835,1781626262000,-500.0,0.00029932,60]
[425226845,1781626262000,-723.50387156,0.00029944,7]
[425226828,1781626262000,-698.96979146,0.00029922,7]
[425226833,1781626262000,-609.12958051,0.00029927,7]
[425226810,1781626262000,-667.51853714,0.00029922,7]
[425226819,1781626262000,-371.60429956,0.00029922,7]
[425226817,1781626262000,-668.28372237,0.00029922,7]
[425226816,1781626262000,-580.7348363,0.00029922,7]
[425226818,1781626262000,-655.585067,0.00029922,7]
[425226820,1781626262000,-418.7324738,0.00029922,7]
[425226830,1781626262000,-532.63581058,0.00029927,7]
[425226815,1781626262000,-386.46148661,0.00029922,7]
[425226831,1781626262000,-622.79771339,0.00029927,7]
[425226822,1781626262000,-829.90295929,0.00029922,7]
[425226823,1781626262000,-737.04285749,0.00029922,7]
[425226824,1781626262000,-730.37017986,0.00029922,7]
[425226825,1781626262000,-733.17153759,0.00029922,7]
[425226829,1781626262000,-427.28519817,0.00029927,7]
[425226827,1781626262000,-371.36600253,0.00029922,7]
[425226821,1781626262000,-667.83774113,0.00029922,7]
[425226826,1781626262000,-654.24072886,0.00029922,7]
[425226867,1781626263000,-1999.999999,0.0003,2]
[425226868,1781626263000,-4999.999999,0.0003,3]
[425226869,1781626263000,-77054.90073465,0.0003,5]
[425226871,1781626263000,-369.71199633,0.0003,30]
[425226870,1781626263000,-4161.0,0.0003,3]
[425226876,1781626263000,-3000.0,0.0003,10]
[425226873,1781626263000,-6925.78341533,0.0003,7]
[425226874,1781626263000,-200516.74364873,0.0003,7]
[425226877,1781626263000,-3402.39,0.0003,30]
[425226865,1781626263000,-2000.0,0.0003,14]
[425226872,1781626263000,-6925.78341533,0.0003,7]
[425226864,1781626263000,-369.71199633,0.0003,30]
[425226857,1781626263000,-62957.77241443,0.0003,2]
[425226861,1781626263000,-11000.0,0.0003,10]
[425226858,1781626263000,-87536.96078209,0.0003,7]
[425226859,1781626263000,-87536.96078209,0.0003,7]
[425226862,1781626263000,-993.94218713,0.0003,60]
[425226863,1781626263000,-164.8,0.0003,2]
[425226860,1781626263000,-108682.35159744,0.0003,5]
[425226856,1781626263000,-211.9,0.0003,11]
[425226855,1781626263000,-866.63,0.00029999,3]
[425226854,1781626263000,-606.64,0.00029999,3]
[425226853,1781626263000,-259.98,0.00029999,3]
[425226875,1781626263000,-4512.0,0.0003,2]
[425226866,1781626263000,-12209.62115167,0.0003,3]
[425226887,1781626263000,-200.0,0.0003,11]
[425226904,1781626263000,-166.37039314,0.0003,2]
[425226888,1781626263000,-200.0,0.0003,11]
[425226879,1781626263000,-2141.43,0.0003,7]
[425226905,1781626263000,-736090.58050612,0.0003,10]
[425226902,1781626263000,-1855.75109439,0.0003,2]
[425226903,1781626263000,-1000.0,0.0003,2]
[425226899,1781626263000,-220.66126549,0.0003,2]
[425226900,1781626263000,-20292.05703107,0.0003,2]
[425226901,1781626263000,-1127.07683525,0.0003,2]
[425226894,1781626263000,-250.0,0.0003,7]
[425226889,1781626263000,-200.0,0.0003,11]
[425226897,1781626263000,-200.0,0.0003,11]
[425226890,1781626263000,-200.0,0.0003,11]
[425226893,1781626263000,-2076.34166519,0.0003,10]
[425226898,1781626263000,-275.37822029,0.0003,2]
[425226891,1781626263000,-198.28,0.0003,2]
[425226880,1781626263000,-3034.36,0.0003,7]
[425226878,1781626263000,-17958.95384832,0.0003,8]
[425226895,1781626263000,-556.78845414,0.0003,3]
[425226882,1781626263000,-6304.01,0.0003,30]
[425226883,1781626263000,-200.0,0.0003,11]
[425226881,1781626263000,-200.0,0.0003,2]
[425226886,1781626263000,-200.0,0.0003,11]
[425226885,1781626263000,-200.0,0.0003,11]
[425226896,1781626263000,-1500.0,0.0003,3]
[425226892,1781626263000,-262.16201594,0.0003,7]
[425226884,1781626263000,-200.0,0.0003,11]
[425226907,1781626265000,-305.1439636,0.00015068,2]
[425226906,1781626265000,-311.0,0.0001499,2]
[425226910,1781626267000,-10336.17550781,0.000166,2]
[425226909,1781626267000,-10336.17550781,0.000164,2]
[425226908,1781626267000,-128.8560364,0.00015068,2]
[425226912,1781626267000,-629.678246,0.0002,2]
[425226911,1781626267000,-10336.17550781,0.000167,2]
[425226914,1781626267000,-1434.92607081,0.000227,2]
[425226913,1781626267000,-1434.92607081,0.000225,2]
[425226915,1781626267000,-1434.92607081,0.00023,2]
[425226918,1781626267000,-157.875884,0.00027397,2]